bitfinex/quotes_BTCUSD_20250608
["timestamp","ask_amount","ask_price","bid_price","bid_amount"]
[1749419948915,0.02966271,106450.0,106440.0,0.94931729]
[1749419949355,0.0390567,106450.0,106440.0,0.3529771]
[1749419949571,0.22693904,106450.0,106440.0,0.33418824]
[1749419949790,0.24963331,106450.0,106440.0,0.0311]
[1749419950329,0.24963331,106450.0,106440.0,0.04049496]
[1749419950418,0.24863331,106450.0,106440.0,0.04049496]
[1749419950843,0.24863331,106450.0,106440.0,0.0321]
[1749419954410,0.2071515,106450.0,106440.0,0.0321]
[1749419956020,0.2071515,106450.0,106440.0,0.0167]
[1749419956224,0.2233515,106450.0,106440.0,0.001]
[1749419956691,0.2071515,106450.0,106440.0,0.001]
[1749419956903,0.2071515,106450.0,106440.0,0.0169]
[1749419957823,0.24893201,106450.0,106440.0,0.0169]
[1749419959965,0.0004818,106450.0,106440.0,0.83492895]
[1749419960179,0.0286628,106450.0,106440.0,0.83492903]
[1749419960386,0.21654443,106450.0,106440.0,0.23858884]
[1749419960586,0.20715097,106450.0,106440.0,0.23858884]
[1749419961149,0.20715097,106450.0,106440.0,0.24798345]
[1749419961365,0.20715097,106450.0,106440.0,0.22919415]
[1749419961572,0.20715097,106450.0,106440.0,0.23858893]
[1749419961781,0.20715097,106450.0,106440.0,0.22919415]
[1749419962012,0.19775733,106450.0,106440.0,0.22919415]
[1749419962952,0.19775733,106450.0,106440.0,0.23858893]
[1749419964648,0.19775733,106450.0,106440.0,0.24798362]
[1749419966371,0.19775733,106450.0,106440.0,0.0319]
[1749419968530,0.18836343,106450.0,106440.0,0.04129496]
[1749419968938,0.18836343,106450.0,106440.0,0.09129496]
[1749419969622,0.18836343,106450.0,106440.0,0.10068983]
[1749419969837,0.18836343,106450.0,106440.0,0.29798389]
[1749419972897,0.18836343,106450.0,106440.0,0.30737858]
[1749419974731,0.21091242,106450.0,106440.0,0.28858911]
[1749419975610,0.21091242,106450.0,106440.0,0.29798389]
[1749419976654,0.21091242,106450.0,106440.0,0.28858911]
[1749419978445,0.21091242,106450.0,106440.0,0.29798389]
[1749419978892,0.21091242,106450.0,106440.0,0.58762389]
[1749419979558,0.21091242,106450.0,106440.0,0.37154]
[1749419979956,0.21091242,106450.0,106440.0,0.3565]
[1749419980276,0.21091242,106450.0,106440.0,0.3718]
[1749419980686,0.27322895,106450.0,106440.0,0.0669]
[1749419980940,0.66401833,106450.0,106440.0,0.051]
[1749419981147,0.67341649,106450.0,106440.0,0.051]
[1749419981367,0.82583714,106450.0,106440.0,0.001]
[1749419981588,0.769817,106450.0,106440.0,0.001]
[1749419981845,0.78825414,106450.0,106440.0,0.001]
[1749419982063,0.83121293,106450.0,106440.0,0.001]
[1749419982291,0.21612397,106420.0,106410.0,0.31509752]
[1749419982498,0.22927676,106420.0,106410.0,0.3057]
[1749419983104,0.22927676,106420.0,106410.0,0.50304978]
[1749419983463,0.2198803,106420.0,106410.0,0.3057]
[1749419983781,0.2198803,106420.0,106410.0,0.31509761]
[1749419984696,0.19733131,106420.0,106410.0,0.31509761]
[1749419984896,0.19733131,106420.0,106410.0,0.32109761]
[1749419985532,0.19733131,106420.0,106410.0,0.3117]
[1749419985739,0.19733131,106420.0,106410.0,0.31174]
[1749419986993,0.19733131,106420.0,106410.0,0.43113761]
[1749419988443,0.19733131,106420.0,106410.0,0.62848721]
[1749419988587,0.20672777,106420.0,106410.0,0.63788446]
[1749419989014,0.20672777,106420.0,106410.0,0.62848721]
[1749419989221,0.19733131,106420.0,106410.0,0.61908987]
[1749419989428,0.19733131,106420.0,106410.0,0.62848739]
[1749419989633,0.19733131,106420.0,106410.0,0.63788482]
[1749419990036,0.19733131,106420.0,106410.0,0.64728207]
[1749419990453,0.19733131,106420.0,106410.0,0.65667924]
[1749419990654,0.01879318,106420.0,106410.0,0.65667924]
[1749419990871,0.01879318,106420.0,106410.0,0.65667862]
[1749419991073,0.01879318,106420.0,106410.0,0.54667862]
[1749419991481,0.02818921,106420.0,106410.0,0.54667862]
[1749419991683,0.03758585,106420.0,106410.0,0.54667862]
[1749419992118,0.04698257,106420.0,106410.0,0.54667862]
[1749419992731,0.04698257,106420.0,106410.0,0.65667862]
[1749419992939,0.22552096,106420.0,106410.0,0.64728163]
[1749419993161,0.22552096,106420.0,106410.0,0.62848721]
[1749419993162,0.2161245,106420.0,106410.0,0.62848721]
[1749419993365,0.2161245,106420.0,106410.0,0.53728163]
[1749419994419,0.2161245,106420.0,106410.0,0.51848721]
[1749419994658,0.2161245,106420.0,106410.0,0.52788455]
[1749419995269,0.20672795,106420.0,106410.0,0.52788455]
[1749419998302,0.20672795,106420.0,106410.0,0.63788455]
[1749419998508,0.20672795,106420.0,106410.0,0.52788455]
[1749419999435,0.21252774,106430.0,106410.0,0.52118092]
[1749419999613,0.01879301,106420.0,106410.0,0.5368811]
[1749419999839,0.01879301,106420.0,106410.0,0.2315411]
[1749420000045,0.02818973,106420.0,106410.0,0.52822411]
[1749420000297,0.03270209,106420.0,106410.0,0.21035226]
[1749420000505,0.25524726,106440.0,106420.0,0.23242362]
[1749420000636,0.02818355,106440.0,106430.0,0.2322034]
[1749420000851,0.60066166,106450.0,106440.0,0.23218327]
[1749420000852,0.02303079,106450.0,106440.0,0.23218327]
[1749420001067,0.0004818,106450.0,106440.0,1.43887675]
[1749420001680,0.0004818,106450.0,106440.0,0.64439718]
[1749420001880,0.01926934,106450.0,106440.0,0.12879948]
[1749420002084,0.20715097,106450.0,106430.0,0.5156589]
[1749420002288,0.03757806,106440.0,106430.0,0.63715343]
[1749420002486,0.20668875,106440.0,106430.0,0.0157]
[1749420002687,0.20668875,106440.0,106430.0,0.30582]
[1749420003095,0.20668875,106440.0,106430.0,0.31521584]
[1749420003305,0.02818603,106430.0,106420.0,0.21612326]
[1749420003550,0.21610376,106430.0,106420.0,0.51328037]
[1749420003753,0.20670845,106430.0,106420.0,0.51328037]
[1749420003988,0.20670845,106430.0,106420.0,0.51324037]
[1749420004361,0.20670845,106430.0,106420.0,0.52263665]
[1749420004608,0.20670845,106430.0,106420.0,0.53203285]
[1749420004852,0.20670845,106430.0,106420.0,0.53303285]
[1749420005721,0.00939514,106430.0,106420.0,0.53303223]
[1749420005977,0.00939514,106430.0,106420.0,0.54943223]
[1749420006208,0.02818444,106440.0,106430.0,0.23150367]
[1749420006449,0.21608372,106440.0,106430.0,0.23150385]
[1749420007077,0.01878948,106440.0,106430.0,0.23150385]
[1749420007318,0.00939434,106440.0,106430.0,0.25659907]
[1749420007569,0.01878886,106440.0,106430.0,0.25659907]
[1749420007803,0.01926916,106450.0,106440.0,0.2254777]
[1749420008032,0.0004818,106450.0,106440.0,0.64481718]
[1749420008506,0.20715044,106450.0,106440.0,0.6354232]
[1749420008727,0.01926881,106450.0,106440.0,0.64481754]
[1749420009185,0.1977568,106450.0,106440.0,0.12749948]
[1749420009400,0.19729406,106440.0,106430.0,0.11]
[1749420010116,0.01879106,106430.0,106420.0,0.5176325]
[1749420010364,0.21610358,106430.0,106420.0,0.40409948]
[1749420010597,0.18795144,106420.0,106410.0,0.0155]
[1749420010828,0.03758866,106410.0,106400.0,0.61466212]
[1749420011008,0.04698627,106410.0,106400.0,0.7110616]
[1749420011231,0.04698618,106410.0,106400.0,0.72045956]
[1749420011524,0.22554163,106410.0,106400.0,0.21189948]
[1749420011746,0.20674721,106410.0,106400.0,0.60530823]
[1749420011971,0.20674721,106410.0,106400.0,0.61470646]
[1749420012235,0.20722871,106410.0,106400.0,0.61470646]
[1749420012474,0.20722871,106410.0,106400.0,0.6291046]
[1749420012702,0.20483376,106410.0,106400.0,0.105]
[1749420013364,0.20483376,106410.0,106400.0,0.11]
[1749420013808,0.20483376,106410.0,106400.0,0.1]
[1749420014028,0.18843376,106410.0,106400.0,0.30336823]
[1749420014456,0.19783119,106410.0,106400.0,0.31276646]
[1749420014661,0.02867362,106410.0,106400.0,0.31476646]
[1749420014872,0.02867362,106410.0,106400.0,0.32416451]
[1749420015132,0.02867362,106410.0,106400.0,0.33356247]
[1749420015133,0.0098784,106410.0,106400.0,0.33356247]
[1749420015340,0.0098784,106410.0,106400.0,0.35856034]
[1749420016217,0.01927548,106410.0,106400.0,0.35856034]
[1749420016432,0.02867273,106410.0,106400.0,0.35856034]
[1749420016651,0.03807008,106410.0,106400.0,0.35856034]
[1749420016862,0.01927548,106410.0,106400.0,0.35856034]
[1749420017077,0.02867282,106410.0,106400.0,0.35856034]
[1749420017514,0.01927548,106410.0,106400.0,0.35856034]
[1749420017723,0.02867273,106410.0,106400.0,0.35856034]
[1749420017931,0.02867273,106410.0,106400.0,0.46856034]
[1749420018566,0.01927548,106410.0,106400.0,0.46856034]
[1749420018777,0.02867273,106410.0,106400.0,0.46856034]
[1749420019178,0.03807016,106410.0,106400.0,0.46856034]
[1749420020634,0.02867282,106410.0,106400.0,0.46856034]
[1749420021049,0.03807025,106410.0,106400.0,0.46856034]
[1749420021679,0.0098784,106410.0,106400.0,0.46856034]
[1749420021896,0.0004815,106410.0,106400.0,0.56495982]
[1749420022122,0.0098784,106410.0,106400.0,0.56495982]
[1749420022347,0.0004815,106410.0,106400.0,0.56495982]
[1749420024923,0.01927557,106410.0,106400.0,0.5179694]
[1749420025159,0.01927548,106410.0,106400.0,0.54616381]
[1749420026926,0.02867273,106410.0,106400.0,0.54616381]
[1749420027789,0.01927548,106410.0,106400.0,0.54616381]
[1749420028207,0.02867265,106410.0,106400.0,0.54616381]
[1749420029474,0.01927548,106410.0,106400.0,0.54616381]
[1749420029885,0.02867282,106410.0,106400.0,0.53676594]
[1749420030096,0.01927548,106410.0,106400.0,0.54616381]
[1749420030306,0.02867273,106410.0,106400.0,0.54616381]
[1749420030524,0.03807016,106410.0,106400.0,0.54616381]
[1749420031379,0.03807016,106410.0,106400.0,0.53056381]
[1749420031578,0.04746768,106410.0,106400.0,0.53056381]
[1749420032494,0.22602304,106410.0,106400.0,0.52116594]
[1749420032709,0.24102304,106410.0,106400.0,0.52116594]
[1749420032885,0.23162596,106410.0,106400.0,0.52116594]
[1749420033128,0.21283128,106410.0,106400.0,0.218]
[1749420033333,0.21283128,106410.0,106400.0,0.50984]
[1749420033540,0.21283128,106410.0,106400.0,0.39984]
[1749420034239,0.21283128,106410.0,106400.0,0.40923849]
[1749420034617,0.20343376,106410.0,106400.0,0.40923849]
[1749420035122,0.20343376,106410.0,106400.0,0.41863689]
[1749420035722,0.20343376,106410.0,106400.0,0.31476681]
[1749420035953,0.28287871,106410.0,106400.0,0.108]
[1749420036160,0.26966517,106410.0,106400.0,0.108]
[1749420036375,0.27625268,106410.0,106400.0,0.108]
[1749420036583,0.27625275,106410.0,106400.0,0.108]
[1749420036759,0.31381242,106410.0,106400.0,0.108]
[1749420037080,0.31381237,106410.0,106400.0,0.108]
[1749420037240,0.31381237,106410.0,106400.0,0.103]
[1749420037442,0.3072246,106410.0,106400.0,0.103]
[1749420037650,0.31381233,106410.0,106400.0,0.104]
[1749420037819,0.31381231,106410.0,106400.0,0.104]
[1749420038227,0.38322572,106410.0,106400.0,0.104]
[1749420038431,0.72204222,106410.0,106400.0,0.101]
[1749420038632,0.216233,106370.0,106360.0,0.19744187]
[1749420038882,0.22563414,106370.0,106360.0,0.3032432]
[1749420039223,0.22563414,106370.0,106360.0,0.31264514]
[1749420039224,0.23283362,106370.0,106360.0,0.31264514]
[1749420039448,0.23283362,106370.0,106360.0,0.30324329]
[1749420039601,0.22343283,106370.0,106360.0,0.30324406]
[1749420039802,0.22343283,106370.0,106360.0,0.31264591]
[1749420040008,0.24589467,106370.0,106360.0,0.31269385]
[1749420040208,0.24589467,106370.0,106360.0,0.31769385]
[1749420040370,0.22343283,106370.0,106360.0,0.32369385]
[1749420041014,0.22343283,106370.0,106360.0,0.20849058]
[1749420041222,0.22343283,106370.0,106360.0,0.01104794]
[1749420041223,0.21403178,106370.0,106360.0,0.01104794]
[1749420041951,0.21403178,106370.0,106360.0,0.00504794]
[1749420042131,0.21403178,106370.0,106360.0,4.794e-05]
[1749420042650,0.21403178,106370.0,106360.0,0.00804794]
[1749420042886,0.21403178,106370.0,106360.0,0.20549058]
[1749420043102,0.21403178,106370.0,106360.0,4.794e-05]
[1749420043312,0.21403178,106370.0,106360.0,0.00204794]
[1749420045027,0.22722865,106370.0,106360.0,0.00204794]
[1749420045438,0.21403178,106370.0,106360.0,0.00204794]
[1749420046539,0.22923178,106370.0,106360.0,0.00204794]
[1749420047291,0.21403178,106370.0,106360.0,0.00204794]
[1749420047717,0.21403178,106370.0,106360.0,0.01144988]
[1749420047919,0.22342495,106370.0,106360.0,0.21829392]
[1749420048136,0.22342495,106370.0,106360.0,0.33129225]
[1749420048137,0.00940035,106370.0,106360.0,0.33129225]
[1749420048340,0.02820166,106370.0,106360.0,0.33129225]
[1749420048517,0.02820157,106370.0,106360.0,0.33129225]
[1749420049934,0.01880087,106370.0,106360.0,0.33129225]
[1749420050170,0.02820157,106370.0,106360.0,0.33129225]
[1749420051447,0.01880087,106370.0,106360.0,0.33129225]
[1749420051658,0.02820157,106370.0,106360.0,0.33129225]
[1749420052255,0.03760245,106370.0,106360.0,0.33129225]
[1749420054910,0.06270333,106370.0,106360.0,0.31469225]
[1749420055809,0.04700333,106370.0,106360.0,0.31469225]
[1749420056173,0.06310333,106370.0,106360.0,0.31469225]
[1749420056373,0.06310333,106370.0,106360.0,0.00204794]
[1749420056374,0.26108688,106370.0,106360.0,0.00204794]
[1749420058491,0.37970445,106370.0,106360.0,0.00204794]
[1749420059197,0.3657052,106370.0,106360.0,0.00204794]
[1749420060465,0.40322197,106370.0,106360.0,0.00204794]
[1749420063311,0.40981602,106370.0,106360.0,0.00204794]
[1749420063516,0.40322197,106370.0,106360.0,0.00204794]
[1749420063933,0.4098159,106370.0,106360.0,0.00204794]
[1749420064155,0.40322197,106370.0,106360.0,0.00204794]
[1749420064352,0.40981594,106370.0,106360.0,0.00204794]
[1749420064554,0.38167837,106370.0,106360.0,0.00204794]
[1749420065266,0.3750844,106370.0,106360.0,0.00204794]
[1749420065477,0.40980188,106370.0,106360.0,0.00204794]
[1749420065683,0.43795352,106370.0,106360.0,0.00204794]
[1749420065908,0.43141165,106370.0,106360.0,0.00204794]
[1749420066117,0.43800562,106370.0,106360.0,0.00204794]
[1749420066330,0.43800617,106370.0,106360.0,0.00204794]
[1749420066534,0.38173102,106370.0,106360.0,0.00204794]
[1749420066742,0.43800617,106370.0,106360.0,0.00204794]
[1749420066925,0.43141165,106370.0,106360.0,0.00204794]
[1749420067095,0.43800616,106370.0,106360.0,0.00204794]
[1749420068600,0.43801593,106370.0,106360.0,0.00204794]
[1749420068982,0.43801591,106370.0,106360.0,0.00204794]
[1749420069238,0.43141165,106370.0,106360.0,0.00204794]
[1749420069464,0.43801591,106370.0,106360.0,0.00204794]
[1749420070199,0.43141165,106370.0,106360.0,0.00204794]
[1749420070493,0.43801597,106370.0,106360.0,0.00204794]
[1749420070692,0.43130702,106370.0,106360.0,0.00204794]
[1749420071010,0.72386702,106370.0,106360.0,0.00204794]
[1749420071154,0.73047139,106370.0,106360.0,0.00204794]
[1749420071353,0.72386702,106370.0,106360.0,0.00204794]
[1749420071605,0.7304714,106370.0,106360.0,0.00204794]
[1749420072490,0.73047132,106370.0,106360.0,0.00204794]
[1749420072903,0.72386702,106370.0,106360.0,0.00204794]
[1749420073110,0.7304713,106370.0,106360.0,0.00204794]
[1749420073724,0.73047136,106370.0,106360.0,0.00204794]
[1749420074335,0.73047135,106370.0,106360.0,0.00204794]
[1749420075250,0.69295402,106370.0,106360.0,0.00204794]
[1749420075603,0.72391627,106370.0,106360.0,0.00204794]
[1749420075952,0.73052004,106370.0,106360.0,0.00204794]
[1749420076195,0.72391627,106370.0,106360.0,0.00204794]
[1749420076403,0.73052003,106370.0,106360.0,0.00204794]
[1749420077347,0.72391627,106370.0,106360.0,0.00204794]
[1749420077550,0.73051952,106370.0,106360.0,0.00204794]
[1749420077750,0.72391627,106370.0,106360.0,0.00204794]
[1749420078375,0.73051952,106370.0,106360.0,0.00204794]
[1749420078859,0.72391627,106370.0,106360.0,0.00204794]
[1749420079008,0.73051951,106370.0,106360.0,0.00204794]
[1749420079215,0.72391627,106370.0,106360.0,0.00204794]
[1749420079834,0.73052124,106370.0,106360.0,0.00204794]
[1749420080470,0.73052129,106370.0,106360.0,0.00204794]
[1749420080989,0.7305213,106370.0,106360.0,0.00204794]
[1749420081391,0.72391627,106370.0,106360.0,0.00204794]
[1749420081595,0.73052124,106370.0,106360.0,0.00204794]
[1749420082453,0.73052121,106370.0,106360.0,0.00204794]
[1749420082729,0.72391627,106370.0,106360.0,0.00204794]
[1749420083098,0.73052123,106370.0,106360.0,0.00204794]
[1749420083298,0.72391627,106370.0,106360.0,0.00204794]
[1749420083483,0.73052116,106370.0,106360.0,0.00204794]
[1749420084249,0.67425025,106370.0,106360.0,0.00204794]
[1749420084439,0.67425018,106370.0,106360.0,0.00204794]
[1749420084859,0.73052534,106370.0,106360.0,0.00204794]
[1749420085023,0.73052539,106370.0,106360.0,0.00204794]
[1749420085218,0.08087819,106370.0,106360.0,0.00204794]
[1749420085420,0.08087819,106370.0,106360.0,0.22469216]
[1749420085421,0.30171049,106370.0,106360.0,0.22469216]
[1749420085624,0.32721126,106370.0,106360.0,0.21529049]
[1749420085864,0.32721126,106370.0,106360.0,0.22469216]
[1749420086176,0.27363579,106370.0,106360.0,0.20588855]
[1749420086501,0.27363579,106370.0,106360.0,0.00204794]
[1749420086502,0.2923997,106370.0,106360.0,0.00204794]
[1749420086710,0.29900845,106370.0,106360.0,0.00204794]
[1749420086913,0.2923997,106370.0,106360.0,0.00204794]
[1749420087114,0.29900869,106370.0,106360.0,0.00204794]
[1749420087571,0.27081188,106370.0,106360.0,0.00204794]
[1749420087742,0.2990592,106370.0,106360.0,0.00204794]
[1749420088069,0.29906084,106370.0,106360.0,0.00204794]
[1749420088271,0.29245021,106370.0,106360.0,0.00204794]
[1749420088473,0.29906083,106370.0,106360.0,0.00204794]
[1749420089628,0.29245021,106370.0,106360.0,0.00204794]
[1749420089831,0.29906096,106370.0,106360.0,0.00204794]
[1749420090034,0.2990609,106370.0,106360.0,0.00204794]
[1749420090235,0.29906092,106370.0,106360.0,0.00204794]
[1749420090649,0.29906509,106370.0,106360.0,0.00204794]
[1749420092302,0.29245438,106370.0,106360.0,0.00204794]
[1749420092518,0.29906508,106370.0,106360.0,0.00204794]
[1749420093468,0.29245438,106370.0,106360.0,0.00204794]
[1749420093711,0.286962,106370.0,106360.0,0.00204794]
[1749420093968,0.28035136,106370.0,106360.0,0.00204794]
[1749420094219,0.28696213,106370.0,106360.0,0.00204794]
[1749420094699,0.34323728,106370.0,106360.0,0.00204794]
[1749420094907,0.34323745,106370.0,106360.0,0.00204794]
[1749420095906,0.33662651,106370.0,106360.0,0.00204794]
[1749420096110,0.34323745,106370.0,106360.0,0.00204794]
[1749420096310,0.33662651,106370.0,106360.0,0.00204794]
[1749420096524,0.34323767,106370.0,106360.0,0.00204794]
[1749420096732,0.33662651,106370.0,106360.0,0.00204794]
[1749420096915,0.34323767,106370.0,106360.0,0.00204794]
[1749420097111,0.33662651,106370.0,106360.0,0.00204794]
[1749420097312,0.34323767,106370.0,106360.0,0.00204794]
[1749420097518,0.34323769,106370.0,106360.0,0.00204794]
[1749420097742,0.3432377,106370.0,106360.0,0.00204794]
[1749420098100,0.33662651,106370.0,106360.0,0.00204794]
[1749420098292,0.42750799,106370.0,106360.0,0.00204794]
[1749420098569,0.43411963,106370.0,106360.0,0.00204794]
[1749420099082,0.46923886,106370.0,106360.0,0.00204794]
[1749420099313,0.83295311,106370.0,106360.0,0.00204794]
[1749420099568,0.8329533,106370.0,106360.0,0.00204794]
[1749420100039,1.06943817,106370.0,106360.0,0.00204794]
[1749420100274,1.06943817,106370.0,106320.0,0.20316205]
[1749420100275,0.20690241,106330.0,106320.0,0.0157]
[1749420100496,0.20694168,106310.0,106300.0,0.0308]
[1749420100754,0.22950557,106310.0,106300.0,0.30965339]
[1749420101000,0.06957327,106310.0,106300.0,0.3285154]
[1749420101236,0.05078155,106310.0,106300.0,0.3467411]
[1749420101459,0.05078147,106310.0,106300.0,0.33792211]
[1749420101682,0.05078147,106310.0,106300.0,0.34674111]
[1749420101907,0.04137546,106310.0,106300.0,0.33792211]
[1749420102181,0.04137546,106310.0,106300.0,0.34674104]
[1749420102446,0.06941389,106310.0,106300.0,0.25034168]
[1749420102840,0.05078147,106310.0,106300.0,0.24652263]
[1749420103063,0.06018765,106310.0,106300.0,0.24952263]
[1749420103299,0.06952541,106310.0,106300.0,0.24952263]
[1749420103522,0.05071296,106310.0,106300.0,0.24952263]
[1749420103768,0.229436,106310.0,106300.0,0.02374796]
[1749420104006,0.72228805,106310.0,106300.0,0.00804796]
[1749420104243,0.71019541,106310.0,106300.0,0.00804796]
[1749420104470,0.63509565,106310.0,106300.0,0.00804796]
[1749420104695,0.6285102,106310.0,106300.0,0.00304796]
[1749420104923,0.63509365,106310.0,106300.0,0.00304796]
[1749420105153,0.65856797,106310.0,106300.0,4.796e-05]
[1749420105388,0.66715141,106310.0,106300.0,4.796e-05]
[1749420105621,0.13274471,106310.0,106300.0,0.00945512]
[1749420105857,0.0547134,106310.0,106300.0,0.21641556]
[1749420106098,0.06411976,106310.0,106300.0,0.23221565]
[1749420106326,0.004,106310.0,106300.0,1.03610193]
[1749420106602,0.01340583,106310.0,106300.0,1.03610193]
[1749420107057,0.02281184,106310.0,106300.0,1.05160193]
[1749420107293,0.01340583,106310.0,106300.0,0.25712236]
[1749420107522,0.02281184,106310.0,106300.0,0.25712236]
[1749420107979,0.01340583,106310.0,106300.0,0.25712236]
[1749420108200,0.02281175,106310.0,106300.0,0.25712236]
[1749420108670,0.004,106310.0,106300.0,0.25712236]
[1749420108899,0.01340574,106310.0,106300.0,1.05160193]
[1749420109144,0.01340574,106310.0,106300.0,1.14800141]
[1749420109145,0.004,106310.0,106300.0,1.14800141]
[1749420109374,0.004,106310.0,106300.0,1.44064141]
[1749420109603,0.002,106310.0,106300.0,1.44064141]
[1749420109840,0.22934042,106330.0,106320.0,0.21632725]
[1749420110066,0.22934042,106330.0,106320.0,0.20692222]
[1749420110296,0.22934042,106330.0,106320.0,0.21632743]
[1749420110787,0.02821244,106330.0,106320.0,0.22573237]
[1749420111017,0.02821235,106330.0,106320.0,0.24173237]
[1749420111224,0.03761685,106330.0,106320.0,0.24173237]
[1749420112134,0.02921235,106330.0,106320.0,0.24173237]
[1749420112368,0.03861685,106330.0,106320.0,0.24173237]
[1749420112826,0.04802144,106330.0,106320.0,0.24173237]
[1749420113046,0.23611511,106330.0,106320.0,0.22292222]
[1749420113269,0.21730708,106330.0,106320.0,0.20692222]
[1749420113489,0.21730708,106330.0,106320.0,0.21632743]
[1749420114187,0.23034008,106330.0,106320.0,0.19751692]
[1749420114423,0.23034008,106330.0,106320.0,0.21632778]
[1749420114662,0.00940565,106310.0,106300.0,0.60146081]
[1749420114880,0.01881157,106310.0,106300.0,0.6108677]
[1749420115103,0.02821766,106310.0,106300.0,0.6108677]
[1749420115319,0.01881157,106310.0,106300.0,0.7208677]
[1749420115803,0.21634671,106310.0,106300.0,0.41910135]
[1749420116026,0.21634777,106310.0,106300.0,0.41640876]
[1749420116252,0.21634777,106310.0,106300.0,0.42781583]
[1749420116678,0.21634777,106310.0,106300.0,0.43722263]
[1749420117993,0.02821872,106310.0,106300.0,0.44662934]
[1749420120176,0.21634777,106310.0,106300.0,0.43722263]
[1749420120392,0.22254168,106310.0,106300.0,0.11504796]
[1749420120604,0.244979,106310.0,106300.0,0.00504796]
[1749420120810,0.244979,106310.0,106300.0,0.20260204]
[1749420121452,0.244979,106310.0,106300.0,0.21200902]
[1749420121649,0.244979,106310.0,106300.0,0.21200928]
[1749420121863,0.244979,106310.0,106300.0,0.22141644]
[1749420122124,0.244979,106310.0,106300.0,0.23082333]
[1749420122534,0.244979,106310.0,106300.0,0.22141644]
[1749420122757,0.244979,106310.0,106300.0,0.23082351]
[1749420123374,0.05684942,106310.0,106300.0,0.24022996]
[1749420123587,0.27302556,106310.0,106300.0,0.00504796]
[1749420123790,0.28802556,106310.0,106300.0,0.00504796]
[1749420124414,0.33222232,106310.0,106300.0,0.00504796]
[1749420124614,0.33222233,106310.0,106300.0,0.01385161]
[1749420124834,0.33222233,106310.0,106300.0,0.00504796]
[1749420125038,0.33222231,106310.0,106300.0,0.01385166]
[1749420125265,0.62402231,106310.0,106300.0,0.01385166]
[1749420125462,0.71116725,106310.0,106300.0,0.00504796]
[1749420126120,0.71116718,106310.0,106300.0,0.00504796]
[1749420126326,0.71116718,106310.0,106300.0,0.00204796]
[1749420126547,0.71116716,106310.0,106300.0,0.00204796]
[1749420126760,0.7111671,106310.0,106300.0,0.00304796]
[1749420126977,0.80756658,106310.0,106300.0,0.00304796]
[1749420127228,0.8263644,106310.0,106300.0,0.00304796]
[1749420127453,0.8263644,106310.0,106300.0,0.00104796]
[1749420127915,0.8263644,106310.0,106300.0,0.00204796]
[1749420128124,0.81976997,106310.0,106300.0,0.00204796]
[1749420128334,0.81976997,106310.0,106280.0,0.0094091]
[1749420128335,0.22308062,106290.0,106280.0,0.0094091]
[1749420128561,0.31107271,106290.0,106280.0,0.00945707]
[1749420128970,0.31107271,106290.0,106280.0,4.797e-05]
[1749420129180,0.28297781,106290.0,106280.0,0.00945707]
[1749420129405,0.28297781,106290.0,106280.0,4.797e-05]
[1749420129637,0.28297781,106290.0,106280.0,0.02163099]
[1749420129842,0.28297781,106290.0,106280.0,0.00404797]
[1749420130070,0.28297781,106290.0,106280.0,0.02163099]
[1749420130485,0.28297781,106290.0,106280.0,0.021631]
[1749420130696,0.33916762,106290.0,106280.0,0.021631]
[1749420131128,0.33916762,106290.0,106280.0,0.02162601]
[1749420131371,0.33916762,106290.0,106280.0,0.02462601]
[1749420131595,0.33916762,106290.0,106280.0,0.00704797]
[1749420132099,0.4104727,106290.0,106280.0,0.02462602]
[1749420132324,0.32715587,106290.0,106280.0,0.02462678]
[1749420132582,0.32715587,106290.0,106280.0,0.00704797]
[1749420133451,0.32715587,106290.0,106280.0,0.00304797]
[1749420133940,0.32715587,106290.0,106280.0,0.00404797]
[1749420134181,0.32715587,106290.0,106280.0,0.00104797]
[1749420134837,0.39533087,106290.0,106280.0,0.00104797]
[1749420135051,0.32715587,106290.0,106280.0,0.00104797]
[1749420136331,0.61835587,106290.0,106280.0,0.00104797]
[1749420137254,0.64394127,106290.0,106280.0,0.00104797]
[1749420137458,0.64394122,106290.0,106280.0,0.00104797]
[1749420137674,0.74034069,106290.0,106280.0,0.00104797]
[1749420137906,0.73375764,106290.0,106280.0,0.00104797]
[1749420138139,0.74034062,106290.0,106280.0,0.00104797]
[1749420138788,0.73375764,106290.0,106280.0,0.00104797]
[1749420139220,0.74033942,106290.0,106280.0,0.00104797]
[1749420140506,0.73375764,106290.0,106280.0,0.00104797]
[1749420141210,1.17673723,106290.0,106280.0,0.00104797]
[1749420141468,0.22281922,106270.0,106260.0,0.0158571]
[1749420141690,0.22281922,106270.0,106260.0,0.01633632]
[1749420141691,0.39249819,106270.0,106260.0,0.01633632]
[1749420141930,0.46734431,106270.0,106260.0,0.01633632]
[1749420142156,0.42624266,106270.0,106260.0,0.01633632]
[1749420142810,0.10669299,106270.0,106260.0,0.23278545]
[1749420143047,0.10679526,106270.0,106260.0,0.24868545]
[1749420143276,0.05986867,106270.0,106260.0,0.24868545]
[1749420143524,0.05051199,106270.0,106260.0,0.36108493]
[1749420144201,0.05151199,106270.0,106260.0,0.37866176]
[1749420144416,0.07033091,106270.0,106260.0,0.36108493]
[1749420144638,0.06092136,106270.0,106260.0,0.37866176]
[1749420144896,0.05151199,106270.0,106260.0,0.36108493]
[1749420145329,0.06092127,106270.0,106260.0,0.36108493]
[1749420145562,0.05151199,106270.0,106260.0,0.37866177]
[1749420145757,0.05151199,106270.0,106260.0,0.3786817]
[1749420145972,0.06092127,106270.0,106260.0,0.3786817]
[1749420146200,0.07033073,106270.0,106260.0,0.3786817]
[1749420146422,0.06092127,106270.0,106260.0,0.36108493]
[1749420146869,0.05151199,106270.0,106260.0,0.36108493]
[1749420147081,0.05151199,106270.0,106260.0,0.9632654]
[1749420147298,0.05151199,106270.0,106260.0,0.3786817]
[1749420148226,0.06092118,106270.0,106260.0,0.3786817]
[1749420148445,0.06092118,106270.0,106260.0,0.37868168]
[1749420148668,0.05151199,106270.0,106260.0,0.37868168]
[1749420148920,0.06092136,106270.0,106260.0,0.36268172]
[1749420149194,0.06092127,106270.0,106260.0,0.36268172]
[1749420149424,0.07033073,106270.0,106260.0,0.36268172]
[1749420149629,0.07033064,106270.0,106260.0,0.34508493]
[1749420150063,0.35700271,106270.0,106260.0,0.03393403]
[1749420150257,0.36292599,106270.0,106260.0,0.01633632]
[1749420150685,0.36951861,106270.0,106260.0,0.01633632]
[1749420150930,0.3695186,106270.0,106260.0,0.01633632]
[1749420151559,0.36951862,106270.0,106260.0,0.01633632]
[1749420151987,0.36292599,106270.0,106260.0,0.01633632]
[1749420152196,0.36952416,106270.0,106260.0,0.01633632]
[1749420152409,0.36292599,106270.0,106260.0,0.01633632]
[1749420152658,0.36952416,106270.0,106260.0,0.01633632]
[1749420153083,0.36951907,106270.0,106260.0,0.01633632]
[1749420153310,0.36292599,106270.0,106260.0,0.01633632]
[1749420153524,0.36951907,106270.0,106260.0,0.01633632]
[1749420154389,0.36292599,106270.0,106260.0,0.01633632]
[1749420155271,0.40042981,106270.0,106260.0,0.01633632]
[1749420155478,0.40702513,106270.0,106260.0,0.01633632]